{"text_format":"2","workbook":"xlsx","n_sheets":3,"sheets":["Sheet1","Sheet3","Sheet2"],"not_rendered":{"charts":0,"images":0,"macros":0,"external_links":0,"defined_names":2,"comments":0,"pivot_tables":0},"unopened":[],"bounds":{"document_bytes":16777216,"sheet_cells":100000,"run_cost":"one","rows_first":2000,"rows_last":500,"rows_between":2000,"halvings":0,"cell_chars":16384,"cell_head_chars":4096},"cells_cut":0,"cells_raw":0,"read":"whole","date_system":"1900"}

{"sheet":"Sheet1","index":0,"n_rows":29,"n_cols":3,"rows_kept":29,"cut":false,"hidden":false,"merged":[]}
["holder_owner","domains_owned"]
["5Q544fKrFoe6tsEbD7S8EmxGTJYAKtTVhAW5Q5pge4j1","Raydium Authority V4"]
["5ENKzVezTxEYtZzF1W4mM1s3LjU6b2oBw8af2827ULKb"]
["5FSt9LxycNWfdXFmhuDbYonoGcnBJDjZYvqC3ZuA9RGc"]
["UKCC5vtp2U5281ZSaSqafDbb9aFcrj84BKsf6p5Aqxm"]
["SGd7pJkt1heW4pTWLBHVtMoqaN1Anvvbb5wp5Juktrb"]
["81XZEmB4eYXqdXktnZRVDaiyFbp6hATgygjK98QSbtXq"]
["2oViQCbm1JWWwvvKeq2zsAns1cT48WDTk77aS7ZAPnjJ"]
["EW5o2Nr2oHdr8YbWfdAFkcpxT2bqvi2jdDpaTepvoQNa"]
["EWpftEEZJ7AJyGJprctqc131qQtpjWkoJahM1D9xdTiH"]
["CJT24gYwv6Sadbj6jUb6ESnm6jYYZdBEzZoeH84C35tq"]
["6frSrTT9aarJuBWKE36uBQJDh3VcSHWeP7Hdhar9ap7g"]
["ALNngQwBnooVP41YWGM6yJZSLHTQ3eVZMaAKc9yigWTj"]
["HUzZ1MrEUXrdPJoAnn5B8uTcshwyyXxFW1EqY2dvcVhe"]
["CMGdz9VBDDmc5uoZFxux4Jv1gYxoUW1Xdu8NxfijCTxJ"]
["5BkT4TNnJE7Zq2s3DmGExGSjL7JpJBnxa6atsjARbkxS"]
["ArHmZWQxH3j29X7nw6xzeFnLrYdywnEKz3oE2zpwXHtd"]
["9wYuJBuoBiNDxk97ZmCqdaBjB3gZ1iFnEBU2Jme3phpV"]
["H9kHjTaJqVrrSuZGwJWgQnjyhVmGANpqsA6eoqbbZrTk"]
["2swb9pJ9Ak5TLBsfsBcr5QVCStM5vNZAcyhRY9uZTSi5"]
["DZm7P5hZBLFKzFqy4JzQaxUnWRkrr3AwDMa2kCrGr4Nc"]
["71CvcuAphXjiDDdGYJe3iiBajgtm62H9F8bo1kNoLWPP","fist.sol","sw"]
["J3ctoNuCEGXD63rf84GfgkXYczt7F6uycpVczzK57MfH"]
["64U9MukooWV5ziNXx2PCmZNmktBzQoKXnKsDBLvgCQ5g","rawdogging.sol","正好回本 疑似庄"]
["215nhcAHjQQGgwpQSJQ7zR26etbjjtVdW74NLzwEgQjP","globalist.sol","KOL"]
["5RANC5iQzzeLFcr1D42Pih4ksUMfa7KXMoCkzoRhujuP"]
["8jzB2HEK322ntFCfzUwajUt9hjYA25L9F8LangTcPfMY"]
["5sEVaCVRRyfWPhw54c4z3h59ZvJ9tL5xK2tYfT4gQnDZ"]
["A2U5owsnFK2jzgBguZCDqXsPzra7ufpYG5N6CFCeQrk6"]

{"sheet":"Sheet3","index":1,"n_rows":24,"n_cols":8,"rows_kept":24,"cut":false,"hidden":false,"merged":[]}
["5ENKzVezTxEYtZzF1W4mM1s3LjU6b2oBw8af2827ULKb",{"$nulls":4},{"$f":"\"('\"&A1&\"'),\"","v":"('5ENKzVezTxEYtZzF1W4mM1s3LjU6b2oBw8af2827ULKb'),"},null,"('5ENKzVezTxEYtZzF1W4mM1s3LjU6b2oBw8af2827ULKb'),"]
["5FSt9LxycNWfdXFmhuDbYonoGcnBJDjZYvqC3ZuA9RGc",{"$nulls":4},{"$f":"\"('\"&A2&\"'),\"","v":"('5FSt9LxycNWfdXFmhuDbYonoGcnBJDjZYvqC3ZuA9RGc'),"},null,"('5FSt9LxycNWfdXFmhuDbYonoGcnBJDjZYvqC3ZuA9RGc'),"]
["UKCC5vtp2U5281ZSaSqafDbb9aFcrj84BKsf6p5Aqxm",{"$nulls":4},"('UKCC5vtp2U5281ZSaSqafDbb9aFcrj84BKsf6p5Aqxm'),",null,"('UKCC5vtp2U5281ZSaSqafDbb9aFcrj84BKsf6p5Aqxm'),"]
["SGd7pJkt1heW4pTWLBHVtMoqaN1Anvvbb5wp5Juktrb",{"$nulls":4},"('SGd7pJkt1heW4pTWLBHVtMoqaN1Anvvbb5wp5Juktrb'),",null,"('SGd7pJkt1heW4pTWLBHVtMoqaN1Anvvbb5wp5Juktrb'),"]
["81XZEmB4eYXqdXktnZRVDaiyFbp6hATgygjK98QSbtXq",{"$nulls":4},"('81XZEmB4eYXqdXktnZRVDaiyFbp6hATgygjK98QSbtXq'),",null,"('81XZEmB4eYXqdXktnZRVDaiyFbp6hATgygjK98QSbtXq'),"]
["2oViQCbm1JWWwvvKeq2zsAns1cT48WDTk77aS7ZAPnjJ",{"$nulls":4},"('2oViQCbm1JWWwvvKeq2zsAns1cT48WDTk77aS7ZAPnjJ'),",null,"('2oViQCbm1JWWwvvKeq2zsAns1cT48WDTk77aS7ZAPnjJ'),"]
["EW5o2Nr2oHdr8YbWfdAFkcpxT2bqvi2jdDpaTepvoQNa",{"$nulls":4},"('EW5o2Nr2oHdr8YbWfdAFkcpxT2bqvi2jdDpaTepvoQNa'),",null,"('EW5o2Nr2oHdr8YbWfdAFkcpxT2bqvi2jdDpaTepvoQNa'),"]
["EWpftEEZJ7AJyGJprctqc131qQtpjWkoJahM1D9xdTiH",{"$nulls":4},"('EWpftEEZJ7AJyGJprctqc131qQtpjWkoJahM1D9xdTiH'),",null,"('EWpftEEZJ7AJyGJprctqc131qQtpjWkoJahM1D9xdTiH'),"]
["CJT24gYwv6Sadbj6jUb6ESnm6jYYZdBEzZoeH84C35tq",{"$nulls":4},"('CJT24gYwv6Sadbj6jUb6ESnm6jYYZdBEzZoeH84C35tq'),",null,"('CJT24gYwv6Sadbj6jUb6ESnm6jYYZdBEzZoeH84C35tq'),"]
["6frSrTT9aarJuBWKE36uBQJDh3VcSHWeP7Hdhar9ap7g",{"$nulls":4},"('6frSrTT9aarJuBWKE36uBQJDh3VcSHWeP7Hdhar9ap7g'),",null,"('6frSrTT9aarJuBWKE36uBQJDh3VcSHWeP7Hdhar9ap7g'),"]
["ALNngQwBnooVP41YWGM6yJZSLHTQ3eVZMaAKc9yigWTj",{"$nulls":4},"('ALNngQwBnooVP41YWGM6yJZSLHTQ3eVZMaAKc9yigWTj'),",null,"('ALNngQwBnooVP41YWGM6yJZSLHTQ3eVZMaAKc9yigWTj'),"]
["HUzZ1MrEUXrdPJoAnn5B8uTcshwyyXxFW1EqY2dvcVhe",{"$nulls":4},"('HUzZ1MrEUXrdPJoAnn5B8uTcshwyyXxFW1EqY2dvcVhe'),",null,"('HUzZ1MrEUXrdPJoAnn5B8uTcshwyyXxFW1EqY2dvcVhe'),"]
["CMGdz9VBDDmc5uoZFxux4Jv1gYxoUW1Xdu8NxfijCTxJ",{"$nulls":4},"('CMGdz9VBDDmc5uoZFxux4Jv1gYxoUW1Xdu8NxfijCTxJ'),",null,"('CMGdz9VBDDmc5uoZFxux4Jv1gYxoUW1Xdu8NxfijCTxJ'),"]
["5BkT4TNnJE7Zq2s3DmGExGSjL7JpJBnxa6atsjARbkxS",{"$nulls":4},"('5BkT4TNnJE7Zq2s3DmGExGSjL7JpJBnxa6atsjARbkxS'),",null,"('5BkT4TNnJE7Zq2s3DmGExGSjL7JpJBnxa6atsjARbkxS'),"]
["ArHmZWQxH3j29X7nw6xzeFnLrYdywnEKz3oE2zpwXHtd",{"$nulls":4},"('ArHmZWQxH3j29X7nw6xzeFnLrYdywnEKz3oE2zpwXHtd'),",null,"('ArHmZWQxH3j29X7nw6xzeFnLrYdywnEKz3oE2zpwXHtd'),"]
["9wYuJBuoBiNDxk97ZmCqdaBjB3gZ1iFnEBU2Jme3phpV",{"$nulls":4},"('9wYuJBuoBiNDxk97ZmCqdaBjB3gZ1iFnEBU2Jme3phpV'),",null,"('9wYuJBuoBiNDxk97ZmCqdaBjB3gZ1iFnEBU2Jme3phpV'),"]
["H9kHjTaJqVrrSuZGwJWgQnjyhVmGANpqsA6eoqbbZrTk",{"$nulls":4},"('H9kHjTaJqVrrSuZGwJWgQnjyhVmGANpqsA6eoqbbZrTk'),",null,"('H9kHjTaJqVrrSuZGwJWgQnjyhVmGANpqsA6eoqbbZrTk'),"]
["2swb9pJ9Ak5TLBsfsBcr5QVCStM5vNZAcyhRY9uZTSi5",{"$nulls":4},"('2swb9pJ9Ak5TLBsfsBcr5QVCStM5vNZAcyhRY9uZTSi5'),",null,"('2swb9pJ9Ak5TLBsfsBcr5QVCStM5vNZAcyhRY9uZTSi5'),"]
["DZm7P5hZBLFKzFqy4JzQaxUnWRkrr3AwDMa2kCrGr4Nc",{"$nulls":4},"('DZm7P5hZBLFKzFqy4JzQaxUnWRkrr3AwDMa2kCrGr4Nc'),",null,"('DZm7P5hZBLFKzFqy4JzQaxUnWRkrr3AwDMa2kCrGr4Nc'),"]
["J3ctoNuCEGXD63rf84GfgkXYczt7F6uycpVczzK57MfH",{"$nulls":4},"('J3ctoNuCEGXD63rf84GfgkXYczt7F6uycpVczzK57MfH'),",null,"('J3ctoNuCEGXD63rf84GfgkXYczt7F6uycpVczzK57MfH'),"]
["5RANC5iQzzeLFcr1D42Pih4ksUMfa7KXMoCkzoRhujuP",{"$nulls":4},"('5RANC5iQzzeLFcr1D42Pih4ksUMfa7KXMoCkzoRhujuP'),",null,"('5RANC5iQzzeLFcr1D42Pih4ksUMfa7KXMoCkzoRhujuP'),"]
["8jzB2HEK322ntFCfzUwajUt9hjYA25L9F8LangTcPfMY",{"$nulls":4},"('8jzB2HEK322ntFCfzUwajUt9hjYA25L9F8LangTcPfMY'),",null,"('8jzB2HEK322ntFCfzUwajUt9hjYA25L9F8LangTcPfMY'),"]
["5sEVaCVRRyfWPhw54c4z3h59ZvJ9tL5xK2tYfT4gQnDZ",{"$nulls":4},"('5sEVaCVRRyfWPhw54c4z3h59ZvJ9tL5xK2tYfT4gQnDZ'),",null,"('5sEVaCVRRyfWPhw54c4z3h59ZvJ9tL5xK2tYfT4gQnDZ'),"]
["A2U5owsnFK2jzgBguZCDqXsPzra7ufpYG5N6CFCeQrk6",{"$nulls":4},"('A2U5owsnFK2jzgBguZCDqXsPzra7ufpYG5N6CFCeQrk6'),",null,"('A2U5owsnFK2jzgBguZCDqXsPzra7ufpYG5N6CFCeQrk6'),"]

{"sheet":"Sheet2","index":2,"n_rows":28,"n_cols":6,"rows_kept":28,"cut":false,"hidden":false,"merged":[]}
["holder_owner_0316日0200","domains_owned_0316日0200","amount_M_0316日0200","holder_owner_0317日0000","domains_owned_0317日0000","amount_M_0317日0000"]
["5Q544fKrFoe6tsEbD7S8EmxGTJYAKtTVhAW5Q5pge4j1","usedsaga.sol",232.65,"5Q544fKrFoe6tsEbD7S8EmxGTJYAKtTVhAW5Q5pge4j1","usedsaga.sol",87.76]
["5ENKzVezTxEYtZzF1W4mM1s3LjU6b2oBw8af2827ULKb",null,29.99,"J3ctoNuCEGXD63rf84GfgkXYczt7F6uycpVczzK57MfH",null,27.29]
["5FSt9LxycNWfdXFmhuDbYonoGcnBJDjZYvqC3ZuA9RGc",null,26.3,"64U9MukooWV5ziNXx2PCmZNmktBzQoKXnKsDBLvgCQ5g","rawdogging.sol",24.49]
["UKCC5vtp2U5281ZSaSqafDbb9aFcrj84BKsf6p5Aqxm",null,25.05,"81XZEmB4eYXqdXktnZRVDaiyFbp6hATgygjK98QSbtXq",null,23.7]
["SGd7pJkt1heW4pTWLBHVtMoqaN1Anvvbb5wp5Juktrb",null,24.78,"UKCC5vtp2U5281ZSaSqafDbb9aFcrj84BKsf6p5Aqxm",null,23.22]
["81XZEmB4eYXqdXktnZRVDaiyFbp6hATgygjK98QSbtXq",null,24.43,"2oViQCbm1JWWwvvKeq2zsAns1cT48WDTk77aS7ZAPnjJ",null,23.19]
["2oViQCbm1JWWwvvKeq2zsAns1cT48WDTk77aS7ZAPnjJ",null,23.19,"5FSt9LxycNWfdXFmhuDbYonoGcnBJDjZYvqC3ZuA9RGc",null,22.61]
["EW5o2Nr2oHdr8YbWfdAFkcpxT2bqvi2jdDpaTepvoQNa",null,22.26,"EW5o2Nr2oHdr8YbWfdAFkcpxT2bqvi2jdDpaTepvoQNa",null,22.26]
["EWpftEEZJ7AJyGJprctqc131qQtpjWkoJahM1D9xdTiH",null,21.8,"EWpftEEZJ7AJyGJprctqc131qQtpjWkoJahM1D9xdTiH",null,21.8]
["CJT24gYwv6Sadbj6jUb6ESnm6jYYZdBEzZoeH84C35tq",null,20.77,"SGd7pJkt1heW4pTWLBHVtMoqaN1Anvvbb5wp5Juktrb",null,21.48]
["6frSrTT9aarJuBWKE36uBQJDh3VcSHWeP7Hdhar9ap7g",null,17.760000000000002,"215nhcAHjQQGgwpQSJQ7zR26etbjjtVdW74NLzwEgQjP","globalist.sol",21.02]
["ALNngQwBnooVP41YWGM6yJZSLHTQ3eVZMaAKc9yigWTj",null,16.41,"HUzZ1MrEUXrdPJoAnn5B8uTcshwyyXxFW1EqY2dvcVhe",null,20.329999999999998]
["CMGdz9VBDDmc5uoZFxux4Jv1gYxoUW1Xdu8NxfijCTxJ",null,15.82,"CJT24gYwv6Sadbj6jUb6ESnm6jYYZdBEzZoeH84C35tq",null,18.91]
["HUzZ1MrEUXrdPJoAnn5B8uTcshwyyXxFW1EqY2dvcVhe",null,15.82,"5RANC5iQzzeLFcr1D42Pih4ksUMfa7KXMoCkzoRhujuP",null,18.739999999999998]
["5BkT4TNnJE7Zq2s3DmGExGSjL7JpJBnxa6atsjARbkxS",null,15.79,"5ENKzVezTxEYtZzF1W4mM1s3LjU6b2oBw8af2827ULKb",null,17.41]
["ArHmZWQxH3j29X7nw6xzeFnLrYdywnEKz3oE2zpwXHtd",null,15.51,"9wYuJBuoBiNDxk97ZmCqdaBjB3gZ1iFnEBU2Jme3phpV",null,16.27]
["9wYuJBuoBiNDxk97ZmCqdaBjB3gZ1iFnEBU2Jme3phpV",null,14.9,"8jzB2HEK322ntFCfzUwajUt9hjYA25L9F8LangTcPfMY",null,15]
["H9kHjTaJqVrrSuZGwJWgQnjyhVmGANpqsA6eoqbbZrTk",null,14.86,"5sEVaCVRRyfWPhw54c4z3h59ZvJ9tL5xK2tYfT4gQnDZ",null,14.3]
["2swb9pJ9Ak5TLBsfsBcr5QVCStM5vNZAcyhRY9uZTSi5",null,13.31,"A2U5owsnFK2jzgBguZCDqXsPzra7ufpYG5N6CFCeQrk6",null,13.64]
["DZm7P5hZBLFKzFqy4JzQaxUnWRkrr3AwDMa2kCrGr4Nc",null,13.3,"DZm7P5hZBLFKzFqy4JzQaxUnWRkrr3AwDMa2kCrGr4Nc",null,13.3]
["71CvcuAphXjiDDdGYJe3iiBajgtm62H9F8bo1kNoLWPP","fist.sol",13.05,"6frSrTT9aarJuBWKE36uBQJDh3VcSHWeP7Hdhar9ap7g",null,11.1]
["J3ctoNuCEGXD63rf84GfgkXYczt7F6uycpVczzK57MfH",null,12.38,"2swb9pJ9Ak5TLBsfsBcr5QVCStM5vNZAcyhRY9uZTSi5",null,11.07]
["AAPurShNpJL5cXdaSTiW4HtPY6qVuHuypNFhoCf5oRYK",null,11.96,"FKvc9tkFjaCxGHFf9KTQ9obAnkv2utAbuHw55j31vQvW",null,10.53]
["CEVzt13CUkFZyFbu9YBZq53qnVUrrJECUGYD2T4mJ5jU","b1gdaddy.sol",10.48,"CEVzt13CUkFZyFbu9YBZq53qnVUrrJECUGYD2T4mJ5jU","b1gdaddy.sol",10.48]
["J5cb5yHYaexf6UZHqvjg6Syh6FkrQRXudxKjUtmXdCEa",null,10.25,"7oAJ7pSiDZ5Rc2Rki2Pa2TKC3P5X7zhF1zvMsGXT37E2",null,10.14]
["FKvc9tkFjaCxGHFf9KTQ9obAnkv2utAbuHw55j31vQvW",null,9.9499999999999993,"UdkxMCjJGnXEzMDhTyqCPard2h3eAbpaekrJC5DJLBx",null,10]
["Fx4LBRfBAa1rfLgJtizoC9MqVZzDhhXPVqoJfSDHtNkw",null,9.83,"9UrAn9DCzewahQxnqQGGYKMTuQSCjDshFwTnj4y7PaVj",null,9.69]